bitfinex/quotes_ETHUSD_20250722
["timestamp","ask_amount","ask_price","bid_price","bid_amount"]
[1753160138446,0.136,3674.1,3673.4,2.72225958]
[1753160138447,0.1931721,3674.1,3673.4,2.72225958]
[1753160138642,0.8104,3674.3,3673.7,0.136]
[1753160138884,0.51,3674.4,3674.1,2.72175318]
[1753160139079,0.51,3674.4,3674.2,0.136]
[1753160139584,0.51,3674.4,3674.3,2.72160683]
[1753160140082,0.51,3674.4,3674.2,0.136]
[1753160140246,0.51,3674.4,3673.9,0.136]
[1753160140676,0.51,3674.4,3673.9,2.7218323]
[1753160140882,0.51,3674.4,3674.2,0.136]
[1753160141281,3.91850683,3674.3,3674.2,0.136]
[1753160141458,4.95936051,3674.3,3673.7,0.136]
[1753160141647,2.72170854,3674.2,3673.7,0.136]
[1753160141848,4.99344124,3674.3,3673.7,0.136]
[1753160142053,2.72170838,3674.2,3673.7,0.136]
[1753160142254,5.27177376,3674.3,3673.7,0.136]
[1753160142449,1.90323488,3674.2,3673.7,0.136]
[1753160142762,4.62492793,3674.2,3673.7,0.136]
[1753160142959,1.46193488,3674.2,3673.7,0.136]
[1753160143158,3.7556,3674.3,3673.7,0.136]
[1753160143358,0.7556,3674.3,3673.7,0.136]
[1753160143589,0.51,3674.4,3673.8,2.72197724]
[1753160143764,0.51,3674.4,3673.5,0.433]
[1753160143765,0.51,3674.4,3674.3,2.72160683]
[1753160144145,0.51,3674.4,3674.3,3.15460683]
[1753160144349,0.51,3674.4,3674.3,3.7558417]
[1753160145283,0.51,3674.4,3674.3,8.3708417]
[1753160145867,0.002,3674.8,3674.6,2.72137267]
[1753160146189,0.002,3674.8,3674.7,2.72131058]
[1753160146354,0.002,3674.8,3674.7,0.136]
[1753160146979,0.002,3674.8,3674.7,2.85731058]
[1753160147177,0.002,3674.8,3674.7,3.64714164]
[1753160147558,0.002,3674.8,3674.7,4.43594164]
[1753160147960,0.002,3674.8,3674.7,9.03694164]
[1753160148163,0.002,3674.8,3674.7,9.58694164]
[1753160148557,0.002,3675.7,3675.6,2.72064424]
[1753160148794,0.002,3675.7,3675.6,8.25314424]
[1753160148979,0.002,3675.7,3675.6,10.36133334]
[1753160149560,0.002,3675.7,3675.6,10.35833334]
[1753160149903,0.002,3675.7,3675.6,5.76233334]
[1753160150061,1e-08,3675.7,3675.6,5.76233334]
[1753160150258,1e-08,3675.7,3675.6,13.22033334]
[1753160150498,1e-08,3675.7,3675.6,14.82033334]
[1753160151077,0.7908,3678.0,3677.6,2.71912908]
[1753160151397,0.7908,3678.0,3677.7,2.71907889]
[1753160151398,1.04517774,3678.0,3677.7,2.71907889]
[1753160151599,0.7908,3678.0,3677.9,2.71894287]
[1753160151803,0.002,3678.3,3677.8,2.7190119]
[1753160152096,0.002,3678.3,3677.1,0.4608]
[1753160152404,0.002,3678.3,3677.0,0.8179]
[1753160152405,2.71885545,3678.1,3677.2,7.30942485]
[1753160152580,2.71885545,3678.1,3677.2,2.71942485]
[1753160152787,0.59202879,3678.0,3677.3,7.30936849]
[1753160153111,0.59202879,3678.0,3677.0,3.53749975]
[1753160153112,2.71908024,3677.8,3677.0,0.8179]
[1753160153301,0.03398863,3677.7,3676.6,2.71987875]
[1753160153604,2.71934953,3677.4,3676.6,2.71987875]
[1753160153771,3.1660405,3677.5,3676.7,4.588]
[1753160154101,3.1660405,3677.5,3676.8,4.587]
[1753160154102,2.71952075,3677.2,3676.8,4.587]
[1753160154627,0.66523611,3677.4,3676.7,4.585]
[1753160154770,0.7672,3677.6,3676.8,5.0438]
[1753160155127,0.59202879,3678.0,3676.8,5.0438]
[1753160155267,0.002,3678.3,3677.9,2.71893049]
[1753160155462,0.002,3678.3,3677.8,2.7190168]
[1753160155702,0.002,3678.3,3677.7,4.582]
[1753160155902,0.002,3678.3,3677.7,5.0428]
[1753160156103,0.002,3678.3,3677.9,2.71893475]
[1753160156270,0.002,3678.3,3677.8,2.71901399]
[1753160156470,0.002,3678.3,3677.7,5.0428]
[1753160156667,0.002,3678.3,3678.2,2.71872111]
[1753160156872,0.002,3678.3,3678.2,7.29972111]
[1753160157082,0.002,3678.3,3677.2,0.7898]
[1753160157405,0.8185,3678.3,3677.5,2.71917485]
[1753160157614,0.002,3678.3,3677.6,2.71915734]
[1753160157794,0.002,3678.3,3677.7,0.4608]
[1753160157979,0.002,3678.3,3678.1,2.71879114]
[1753160158187,0.002,3678.3,3678.2,2.71872111]
[1753160158494,0.002,3678.3,3677.9,0.4608]
[1753160158701,0.002,3678.3,3676.4,2.72003461]
[1753160158913,0.002,3678.3,3678.2,2.71872111]
[1753160159105,0.002,3678.3,3678.2,7.29872111]
[1753160159411,0.002,3678.3,3678.2,5.0408]
[1753160159617,0.002,3678.3,3678.2,4.58]
[1753160159816,0.002,3679.1,3679.0,2.71812992]
[1753160159982,0.002,3679.1,3678.2,2.71867829]
[1753160160183,0.002,3679.1,3678.6,0.1352]
[1753160160402,0.1352,3678.9,3678.3,0.1352]
[1753160160586,2.7185694,3678.5,3678.3,0.1352]
[1753160160804,0.5436921,3678.4,3678.3,0.1352]
[1753160160982,3.70906539,3678.4,3678.3,0.1352]
[1753160161210,3.64814803,3678.3,3677.7,0.1352]
[1753160161407,0.9315,3678.3,3677.8,2.7190168]
[1753160161720,0.002,3678.3,3678.2,2.85392111]
[1753160162018,0.002,3678.3,3678.2,0.1352]
[1753160162927,0.002,3678.3,3678.2,2.85392111]
[1753160163222,0.6963,3678.7,3678.2,0.1352]
[1753160163725,2.71875012,3678.2,3678.0,0.1352]
[1753160164037,0.61598031,3678.6,3677.0,2.71953704]
[1753160164038,2.71879503,3678.1,3677.0,2.71953704]
[1753160164346,2.7190168,3677.8,3676.8,5.4006]
[1753160164487,2.71908107,3677.8,3677.2,0.1352]
[1753160164687,0.1352,3677.9,3677.2,0.1352]
[1753160164889,0.4468,3678.2,3677.7,0.1352]
[1753160165141,1.81373085,3678.2,3677.7,0.1352]
[1753160165287,2.71887817,3678.0,3677.7,0.1352]
[1753160165487,0.03398678,3677.9,3676.8,5.0758]
[1753160165802,2.71908802,3677.8,3677.4,0.1352]
[1753160166007,0.4468,3677.8,3677.4,0.1352]
[1753160166307,2.71856804,3678.5,3676.8,4.615]
[1753160166509,2.7186472,3678.3,3677.8,0.1352]
[1753160166697,0.16918216,3678.4,3677.8,0.1352]
[1753160166897,0.7897,3678.5,3677.5,0.4608]
[1753160167095,2.71872613,3678.2,3678.1,0.1352]
[1753160167508,3.0,3678.4,3678.1,0.1352]
[1753160167818,2.71872111,3678.2,3678.1,0.1352]
[1753160168214,2.71883101,3678.1,3677.9,0.1352]
[1753160168414,2.71886895,3678.0,3677.9,0.1352]
[1753160168615,2.71934301,3677.4,3676.6,1.2795]
[1753160168922,2.7193865,3677.3,3677.2,0.1352]
[1753160169222,3.1661865,3677.3,3677.2,0.1352]
[1753160170091,3.1661865,3677.3,3676.1,0.7777]
[1753160170296,2.71978996,3676.8,3676.7,0.1352]
[1753160170513,2.71978996,3676.8,3676.1,0.7777]
[1753160170514,2.71978996,3676.8,3675.8,0.4608]
[1753160170715,0.1352,3676.9,3676.3,0.136]
[1753160171025,0.7582,3676.8,3676.3,0.136]
[1753160171229,0.136,3676.4,3675.8,0.136]
[1753160171450,0.1352,3677.0,3676.3,0.136]
[1753160171756,2.71997824,3676.5,3676.3,0.136]
[1753160171890,3.03399602,3676.9,3676.3,0.136]
[1753160172241,0.8251,3676.3,3675.8,0.136]
[1753160172422,2.72027953,3676.1,3675.8,0.136]
[1753160172600,2.72035978,3676.0,3675.8,0.136]
[1753160172936,0.8251,3676.3,3675.8,0.136]
[1753160173108,1.2035,3676.9,3675.8,0.136]
[1753160173435,2.7200423,3676.5,3676.0,0.136]
[1753160173833,2.88911255,3676.6,3676.0,0.136]
[1753160173996,4.7651988,3676.6,3676.0,0.136]
[1753160174195,0.1352,3676.6,3675.7,1.2875]
[1753160174520,0.1352,3676.6,3675.4,7.31572084]
[1753160174521,0.4468,3678.8,3676.8,2.71971157]
[1753160174833,0.4468,3678.8,3676.7,0.55]
[1753160174834,0.8328,3679.0,3677.4,0.55]
[1753160175040,0.8328,3679.0,3678.1,2.71877277]
[1753160175349,0.8328,3679.0,3677.4,0.55]
[1753160175350,0.8328,3679.0,3677.8,0.4608]
[1753160175550,0.8328,3679.0,3678.5,2.71842761]
[1753160175695,0.8328,3679.0,3678.2,2.71867532]
[1753160176019,0.8328,3679.0,3678.6,2.71836678]
[1753160176328,0.002,3679.1,3678.6,2.71836678]
[1753160176538,0.002,3679.1,3678.3,2.71862287]
[1753160176717,0.03397662,3679.0,3677.9,2.71894287]
[1753160176909,0.03397662,3679.0,3678.2,2.71870834]
[1753160177108,0.002,3679.1,3678.3,2.7186472]
[1753160177308,2.72006512,3679.1,3678.2,2.7187085]
[1753160177508,2.72006512,3679.1,3677.8,0.4608]
[1753160177509,0.03397662,3679.0,3677.8,0.4608]
[1753160177716,3.03397662,3679.0,3677.7,4.599]
[1753160178037,0.03397662,3679.0,3678.3,2.71863577]
[1753160178200,0.03397662,3679.0,3678.4,2.71856804]
[1753160178521,2.75211538,3679.0,3677.7,0.457]
[1753160178831,0.03397662,3679.0,3677.8,3.30767802]
[1753160179038,0.0359757,3679.1,3678.4,2.7185342]
[1753160179406,0.0359757,3679.1,3678.5,2.71848558]
[1753160179813,0.0359757,3679.1,3678.3,2.71858656]
[1753160180131,0.0359757,3679.1,3678.4,2.71855904]
[1753160180322,3.0359757,3679.1,3678.4,2.71855904]
[1753160180528,0.0359757,3679.1,3678.3,2.71864684]
[1753160180706,0.0359757,3679.1,3678.4,2.71854054]
[1753160180905,0.002,3679.1,3678.5,2.71848397]
[1753160181338,0.002,3679.1,3678.7,2.71834066]
[1753160181699,0.002,3679.1,3678.7,0.27183407]
[1753160181901,0.002,3679.1,3679.0,2.71812992]
[1753160182197,0.002,3679.1,3679.0,3.26812992]
[1753160182402,0.002,3679.1,3679.0,3.72512992]
[1753160182752,0.8332,3680.6,3679.7,2.71761284]
[1753160183041,0.03395908,3680.9,3679.7,2.71761284]
[1753160183202,0.97484305,3680.9,3679.7,2.71761284]
[1753160183415,0.97484305,3680.9,3679.7,3.17461284]
[1753160183739,0.002,3679.9,3679.7,4.22214551]
[1753160184542,0.002,3679.9,3679.7,4.35734551]
[1753160186513,0.002,3679.9,3679.7,0.1352]
[1753160186712,1.2953,3679.8,3678.5,0.8293]
[1753160186951,1.2953,3679.8,3679.3,0.1352]
[1753160186952,2.71776629,3679.5,3679.3,0.1352]
[1753160187238,0.4732,3679.4,3679.1,0.1352]
[1753160187426,0.16917016,3679.7,3679.1,0.1352]
[1753160187630,0.1352,3679.7,3679.1,0.1352]
[1753160187803,2.71761284,3679.7,3679.4,0.1352]
[1753160188003,0.4732,3679.6,3679.4,0.1352]
[1753160188254,2.75173256,3679.5,3679.1,0.1352]
[1753160188410,0.50717108,3679.6,3679.1,0.1352]
[1753160188611,3.53965428,3679.8,3678.9,2.71813777]
[1753160188834,0.8221,3679.8,3679.3,0.1352]
[1753160189041,0.85606923,3679.8,3679.3,0.1352]
[1753160189250,0.8221,3679.8,3679.1,2.71799214]
[1753160189406,3.53964273,3679.8,3679.5,0.1352]
[1753160189613,0.002,3679.8,3679.5,0.1352]
[1753160189845,0.002,3679.8,3678.6,5.027]
[1753160190158,0.002,3679.8,3679.7,2.85281284]
[1753160191043,0.002,3679.8,3679.7,3.30981284]
[1753160191645,0.002,3679.8,3679.7,3.99549721]
[1753160193109,0.002,3679.8,3679.7,2.85281284]
[1753160193344,0.002,3679.8,3679.7,0.1352]
[1753160193656,0.002,3679.8,3679.7,2.85281284]
[1753160194061,0.002,3679.8,3679.7,3.30981284]
[1753160194266,2.71953899,3679.8,3679.7,0.1352]
[1753160194465,0.59321154,3679.8,3679.5,0.1352]
[1753160194715,0.002,3679.8,3679.5,0.1352]
[1753160194862,0.002,3679.8,3679.7,2.71761284]
[1753160195028,0.002,3679.8,3679.7,2.85281284]
[1753160195367,0.002,3679.8,3679.6,0.457]
[1753160195368,2.71774671,3679.6,3678.6,0.457]
[1753160195570,3.7796,3679.2,3677.7,2.71906415]
[1753160195735,2.71835177,3678.7,3678.3,0.1352]
[1753160195925,0.1352,3678.9,3678.3,0.1352]
[1753160196125,3.1352,3678.9,3678.3,0.1352]
[1753160196326,0.03397662,3679.0,3677.8,0.457]
[1753160196554,0.03397662,3679.0,3678.5,0.1352]
[1753160196734,0.1352,3679.1,3678.5,0.1352]
[1753160196940,0.7796,3679.2,3678.8,0.1352]
[1753160197138,3.19126125,3679.1,3678.8,0.1352]
[1753160197347,2.71820381,3678.9,3678.4,0.1352]
[1753160197726,0.4732,3679.0,3678.4,0.1352]
[1753160197957,3.03397754,3678.9,3678.4,0.1352]
[1753160198499,5.71849938,3678.5,3678.4,0.1352]
[1753160198656,3.0,3678.4,3677.5,2.72021759]
[1753160198846,2.71872111,3678.2,3677.5,0.001]
[1753160199174,3.0,3678.0,3677.5,0.001]
[1753160199338,3.0,3678.1,3677.5,0.001]
[1753160199548,1.6946051,3678.5,3677.5,0.001]
[1753160199549,6.52276467,3677.6,3677.5,0.001]
[1753160199749,8.12625978,3677.6,3677.5,0.001]
[1753160200045,13.13447023,3677.6,3677.5,0.001]
[1753160200240,8.8448,3677.6,3677.5,0.001]
[1753160200466,11.56396467,3677.6,3677.5,0.001]
[1753160200986,6.99596467,3677.6,3677.5,0.001]
[1753160201191,8.8428,3677.6,3677.5,0.001]
[1753160201366,11.56196467,3677.6,3677.5,0.001]
[1753160202283,6.99596467,3677.6,3677.5,0.001]
[1753160202482,11.55596467,3677.6,3677.5,0.001]
[1753160202706,18.09550899,3677.6,3677.5,0.001]
[1753160202845,13.53550899,3677.6,3677.5,0.001]
[1753160203049,18.09550899,3677.6,3677.5,0.001]
[1753160203488,6.54098234,3676.9,3676.8,0.001]
[1753160203648,12.6570375,3676.9,3676.8,0.001]
[1753160203853,13.09624148,3676.9,3676.8,0.001]
[1753160204351,13.09524148,3676.9,3676.8,0.001]
[1753160205268,13.09324148,3676.9,3676.8,0.001]
[1753160205985,8.53824148,3676.9,3676.8,0.001]
[1753160206188,13.09124148,3676.9,3676.8,0.001]
[1753160206392,4.2945,3676.9,3676.8,0.001]
[1753160206557,11.56718234,3676.9,3676.8,0.001]
[1753160206954,7.01418234,3676.9,3676.8,0.001]
[1753160207160,11.56518234,3676.9,3676.8,0.001]
[1753160207469,3.8213,3676.9,3676.8,0.001]
[1753160208165,8.3693,3676.9,3676.8,0.001]
[1753160208771,8.8191,3676.9,3676.8,0.001]
[1753160209292,3.8213,3676.9,3676.8,0.001]
[1753160209471,3.0,3676.9,3676.8,0.001]
[1753160209794,7.543,3676.9,3676.8,0.001]
[1753160209996,3.0,3676.9,3676.8,0.001]
[1753160210197,11.75025728,3676.9,3676.8,0.001]
[1753160210895,8.03095728,3676.9,3676.8,0.001]
[1753160211103,12.56995728,3676.9,3676.8,0.001]
[1753160213550,5.8549563,3676.8,3676.7,0.001]
[1753160213840,9.80050551,3676.8,3676.7,0.001]
[1753160214154,14.29750856,3676.8,3676.7,0.001]
[1753160214298,13.74750856,3676.8,3676.7,0.001]
[1753160214498,9.21650856,3676.8,3676.7,0.001]
[1753160214715,13.74650856,3676.8,3676.7,0.001]
[1753160214929,9.21650856,3676.8,3676.7,0.001]
[1753160215140,13.74350856,3676.8,3676.7,0.001]
[1753160215436,13.74250856,3676.8,3676.7,0.001]
[1753160215932,6.21650856,3676.8,3676.7,0.001]
[1753160216135,0.95399695,3676.8,3676.7,0.001]
[1753160216431,4.69319695,3676.8,3676.7,0.001]
[1753160216632,7.41295325,3676.8,3676.7,0.001]
[1753160216835,0.1352,3676.8,3676.7,0.001]
[1753160217249,4.6572,3676.8,3676.7,0.001]
[1753160217441,4.6562,3676.8,3676.7,0.001]
[1753160217642,7.521,3676.8,3676.7,0.001]
[1753160217936,10.2407563,3676.8,3676.7,0.001]
[1753160218308,7.521,3676.8,3676.7,0.001]
[1753160218508,10.2367563,3676.8,3676.7,0.001]
[1753160218708,7.517,3676.8,3676.7,0.001]
[1753160218936,10.2367563,3676.8,3676.7,0.001]
[1753160219102,7.517,3676.8,3676.7,0.001]
[1753160219939,4.512,3676.8,3676.7,0.4658]
[1753160220247,4.512,3676.8,3676.7,0.1362]
[1753160220534,4.511,3676.8,3676.7,0.1362]
[1753160220902,2.85458853,3677.3,3676.7,0.1362]
[1753160221113,2.7197563,3676.8,3676.7,0.1362]
[1753160221343,10.2297563,3676.8,3676.7,0.001]
[1753160221532,11.4374563,3676.8,3676.7,0.001]
[1753160221941,6.4837742,3676.1,3676.0,0.001]
[1753160222142,0.7635,3675.2,3673.5,0.7552]
[1753160222358,2.7224155,3673.3,3672.5,0.4648]
[1753160222562,4.515,3673.2,3672.6,0.39954019]
[1753160222856,4.515,3673.2,3672.3,0.001]
[1753160222857,5.7225701,3673.0,3672.3,0.001]
[1753160223015,0.4498,3673.1,3672.3,0.001]
[1753160223016,3.0,3672.8,3672.3,0.001]
[1753160223219,5.98002994,3672.9,3672.3,0.001]
[1753160223220,0.7793,3672.5,3672.3,0.001]
[1753160223540,10.2740526,3672.4,3672.3,0.001]
[1753160223718,1.16391526,3672.4,3672.3,0.001]
[1753160223918,0.17003768,3672.4,3672.3,3.18888907]
[1753160224116,0.136,3672.4,3672.3,3.18888907]
[1753160224365,0.03403305,3672.9,3672.3,3.18888907]
[1753160224519,4.521,3672.8,3672.4,0.39416891]
[1753160224717,4.519,3672.7,3672.4,0.136]
[1753160224931,2.72294077,3672.5,3672.4,0.136]
[1753160225136,10.24494077,3672.5,3672.4,0.136]
[1753160225433,5.72301492,3672.4,3672.3,0.001]
[1753160225620,4.523,3672.4,3672.3,0.001]
[1753160225815,0.03403583,3672.6,3672.3,0.001]
[1753160226019,4.523,3672.5,3672.3,0.001]
[1753160226320,7.523,3672.4,3672.3,0.001]
[1753160227138,5.72301492,3672.4,3672.3,0.001]
[1753160227326,0.03403305,3672.9,3672.3,0.001]
[1753160227526,0.03403212,3673.0,3672.3,0.001]
[1753160227727,0.03403212,3673.0,3672.4,2.72298673]
[1753160227926,3.0,3673.2,3672.3,2.72404088]
[1753160228116,6.529,3673.3,3672.8,2.72264631]
[1753160228313,6.529,3673.3,3672.9,0.4648]
[1753160228526,4.523,3673.2,3673.1,2.72249598]
[1753160228730,0.03402193,3674.1,3673.3,2.72228175]
[1753160228930,4.523,3674.0,3673.1,0.4648]
[1753160229190,0.03402101,3674.2,3673.1,0.4648]
[1753160229492,0.763,3674.8,3673.5,0.8159]
[1753160229667,0.763,3674.8,3673.7,2.72205133]
[1753160229875,4.55601638,3674.7,3673.8,0.35379513]
[1753160230174,0.03401082,3675.3,3673.9,2.72190315]
[1753160230381,4.522,3675.2,3674.5,2.7214587]
[1753160230677,0.7994,3675.4,3674.7,2.72129491]
[1753160230678,0.03401267,3675.1,3674.7,2.72129491]
[1753160230969,4.521,3675.1,3674.5,2.7214534]
[1753160231264,4.519,3675.0,3674.7,2.72130266]
[1753160231768,0.03401175,3675.2,3674.2,0.4648]
[1753160231969,4.516,3675.1,3674.9,2.72111056]
[1753160232172,4.516,3675.1,3674.2,0.4648]
[1753160232173,3.7994,3674.9,3673.4,0.7984]
[1753160232466,4.54901545,3674.8,3673.6,2.72207057]
[1753160232681,2.72153406,3674.4,3673.5,2.72219953]
[1753160232861,4.55802008,3674.3,3672.9,2.72264423]
[1753160233026,2.72189553,3674.0,3673.0,2.72255811]
[1753160233232,4.55802378,3673.9,3672.9,2.72264423]
[1753160233453,4.524,3673.8,3672.8,1.2793]
[1753160233638,4.524,3673.8,3672.8,4.00195788]
[1753160233852,4.524,3673.8,3672.8,4.67444675]
[1753160234174,0.03402564,3673.7,3672.8,1.2793]
[1753160234465,0.03402564,3673.7,3672.4,0.001]
[1753160234466,3.03402564,3673.7,3672.4,0.001]
[1753160234663,2.7224765,3673.2,3672.4,0.001]
[1753160234831,4.521,3673.1,3672.4,2.72400833]
[1753160235032,0.03403027,3673.2,3672.5,0.4648]
[1753160235233,4.519,3673.3,3673.1,2.72249563]
[1753160235442,4.519,3673.3,3672.4,0.001]
[1753160235646,2.72197724,3673.8,3673.2,0.136]
[1753160235846,4.52,3673.7,3673.2,0.136]
[1753160236054,2.72214376,3673.6,3673.2,0.136]
[1753160236268,4.518,3673.5,3673.3,2.72232411]
[1753160236446,4.518,3673.5,3673.2,0.6008]
[1753160236643,0.136,3673.9,3673.4,2.72227364]
[1753160236969,4.518,3673.9,3673.6,2.72206511]
[1753160237173,6.531,3674.2,3673.8,2.72196561]
[1753160237376,6.531,3674.2,3673.7,0.136]
[1753160237377,3.5454956,3675.0,3673.9,0.456]
[1753160237667,4.517,3674.9,3674.2,2.72162575]
[1753160237974,0.03401545,3674.8,3673.9,0.456]
[1753160238268,4.516,3674.7,3674.1,2.7217212]
[1753160238475,0.136,3675.0,3674.4,0.136]
[1753160238672,0.03401175,3675.2,3674.4,2.72152448]
[1753160238966,2.72115737,3675.0,3674.6,0.136]
[1753160239177,2.72116248,3674.9,3674.6,0.136]
[1753160239335,2.72140431,3674.6,3674.4,0.136]
[1753160239535,5.05625668,3674.6,3673.3,3.94473778]
[1753160239793,2.72163479,3674.3,3674.2,0.136]
[1753160240165,2.72158516,3674.4,3673.8,0.136]
[1753160240364,0.03402008,3674.3,3673.8,0.136]
[1753160240560,4.511,3674.2,3673.8,0.456]
[1753160240760,4.51,3674.1,3674.0,0.136]
[1753160240961,2.72183705,3674.0,3673.3,0.7664]
[1753160241144,2.72198873,3673.8,3673.6,0.136]
[1753160241541,4.508,3673.7,3672.9,1.2652]
[1753160241852,2.72213201,3673.6,3673.3,0.136]
[1753160242286,7.23006639,3673.7,3673.3,0.136]
[1753160242576,7.23006639,3673.7,3672.3,0.001]
[1753160242577,0.798,3673.5,3672.3,0.001]
[1753160242784,2.72255996,3673.1,3672.7,0.136]
[1753160242936,2.72271836,3672.8,3672.7,0.136]
[1753160243142,2.72265442,3672.9,3672.7,0.136]
[1753160243343,2.72271836,3672.8,3672.3,0.001]
[1753160243553,2.72273347,3672.8,3672.5,0.136]
[1753160243752,0.03403305,3672.9,3672.5,0.136]
[1753160244289,0.03403305,3672.9,3672.3,0.001]
[1753160244290,4.507,3672.9,3672.6,0.456]
[1753160244888,7.23071481,3672.9,3672.3,0.7579]
[1753160245385,7.23070607,3672.9,3672.3,0.7579]
[1753160245584,4.508,3672.9,3672.3,0.7579]
[1753160245783,4.508,3672.9,3672.3,3.4809818]
[1753160246173,4.508,3672.9,3672.4,0.457]
[1753160246488,0.798,3673.5,3672.5,0.456]
[1753160246789,4.508,3673.4,3673.1,2.72248998]
[1753160246974,4.508,3673.4,3672.6,0.55]
[1753160246975,4.508,3673.4,3672.7,2.72279249]
[1753160247302,4.508,3673.4,3672.5,0.456]
[1753160247476,4.508,3673.4,3672.6,2.72284113]
[1753160247679,4.508,3673.3,3672.7,0.456]
[1753160247868,4.508,3673.2,3672.4,0.001]
[1753160248067,2.72249821,3673.1,3672.4,0.001]
[1753160248305,2.72256666,3673.1,3672.4,0.001]
[1753160248473,4.508,3673.0,3672.4,0.001]
[1753160249061,2.72235259,3673.3,3672.4,0.001]
[1753160249290,4.54203027,3673.2,3672.4,0.001]
[1753160249497,7.26445335,3673.2,3672.4,2.72398611]
[1753160249833,1.2671,3673.4,3672.4,0.001]
[1753160249951,2.72278202,3672.8,3672.4,0.001]
[1753160250155,4.508,3672.7,3672.4,0.001]
[1753160250663,0.03403305,3672.9,3672.5,2.72293412]
[1753160250864,3.03402934,3673.3,3672.5,2.72288084]
[1753160251104,0.03402934,3673.3,3672.4,2.72398517]
[1753160251275,4.508,3673.2,3672.8,2.72269983]
[1753160251462,4.508,3673.2,3672.8,0.456]
[1753160251662,4.508,3673.2,3672.4,0.77509852]
[1753160251851,4.508,3673.1,3672.6,2.72285641]
[1753160252054,4.508,3673.1,3672.7,2.72278552]
[1753160252263,4.508,3673.1,3672.4,0.31909852]
[1753160252467,4.508,3673.1,3672.7,0.456]
[1753160252668,4.508,3673.1,3672.8,2.72266291]
[1753160252864,4.508,3673.1,3672.7,0.456]
[1753160253065,0.03402656,3673.6,3672.7,0.456]
[1753160253265,4.508,3673.5,3672.8,2.72266165]
[1753160253513,5.61550256,3673.5,3672.4,0.001]
[1753160253815,2.72263191,3673.0,3672.4,0.001]
[1753160254108,2.72288401,3672.6,3672.4,0.001]
[1753160254404,2.72286663,3672.6,3672.5,0.136]
[1753160254690,7.67186663,3672.6,3672.5,0.136]
[1753160254895,2.72294077,3672.5,3672.4,0.001]
[1753160255202,2.75697752,3672.5,3672.4,0.001]
[1753160255661,8.7113306,3672.6,3672.4,0.001]
[1753160255859,2.72294077,3672.5,3672.4,0.001]
[1753160256088,3.19797752,3672.5,3672.4,0.001]
[1753160256290,4.36474233,3672.5,3672.4,0.001]
[1753160256611,4.508,3672.5,3672.4,0.001]
[1753160257208,2.72286989,3672.6,3672.4,0.001]
[1753160257414,7.23094077,3672.5,3672.4,0.001]
[1753160257788,2.72294077,3672.5,3672.4,0.001]
[1753160258190,7.67194077,3672.5,3672.4,0.001]
[1753160258706,4.508,3672.5,3672.4,0.001]
[1753160258904,0.441,3673.4,3672.4,0.001]
[1753160259114,2.85840744,3673.3,3672.4,0.593]
[1753160259319,2.7227016,3672.9,3672.7,0.136]
[1753160259614,7.23071836,3672.8,3672.7,0.136]
[1753160259813,7.23071836,3672.8,3672.4,0.001]
[1753160259814,2.72294077,3672.5,3672.4,0.001]
[1753160260325,8.42884077,3672.5,3672.4,0.001]
[1753160260529,3.92084077,3672.5,3672.4,0.001]
[1753160260818,8.42884077,3672.5,3672.4,0.001]
[1753160260990,9.09320897,3672.5,3672.4,0.001]
[1753160263117,8.42884077,3672.5,3672.4,0.001]
[1753160266889,22.92884077,3672.5,3672.4,0.001]
[1753160269524,25.92884077,3672.5,3672.4,0.001]
[1753160269953,11.42884077,3672.5,3672.4,0.001]
[1753160270342,21.42084077,3672.5,3672.4,0.001]
[1753160270660,28.35590323,3672.5,3672.4,0.001]
[1753160271558,23.85030323,3672.5,3672.4,0.001]
[1753160271745,28.35830323,3672.5,3672.4,0.001]
[1753160272146,23.85030323,3672.5,3672.4,0.001]
[1753160272457,13.85830323,3672.5,3672.4,0.001]
[1753160272663,5.90790323,3672.5,3672.4,0.001]
[1753160272860,3.51387752,3672.5,3672.4,0.001]
[1753160273071,8.02087752,3672.5,3672.4,0.001]
[1753160273372,7.98684077,3672.5,3672.4,0.001]
[1753160273542,0.4424,3672.9,3672.4,0.001]
[1753160273722,0.136,3672.7,3672.4,0.001]
[1753160273926,4.507,3672.6,3672.4,0.001]
[1753160274862,0.136,3672.7,3672.5,0.781]
[1753160275062,4.507,3672.6,3672.5,0.781]
[1753160275451,0.20207918,3673.4,3672.5,1.64938468]
[1753160275652,4.54102934,3673.3,3672.5,0.781]
[1753160275827,4.54102934,3673.3,3672.4,0.001]
[1753160275828,2.72242186,3673.2,3672.4,0.001]
[1753160276171,4.507,3673.1,3672.6,2.72281]
[1753160276472,2.72220224,3673.5,3672.7,0.4707]
[1753160276640,4.54102842,3673.4,3672.8,2.72271836]
[1753160277476,4.507,3673.3,3672.7,0.4707]
[1753160277680,0.96186244,3673.9,3673.0,0.781]
[1753160277861,4.54002471,3673.8,3673.0,3.50356312]
[1753160278201,4.54002471,3673.8,3673.0,0.781]
[1753160278202,10.26201657,3673.8,3673.0,0.781]
[1753160278352,2.7220788,3673.7,3673.0,0.781]
[1753160278671,3.19855764,3673.6,3672.6,0.7865]
[1753160278837,2.72227364,3673.4,3672.6,0.7865]
[1753160279039,0.03402934,3673.3,3672.6,3.50935629]
[1753160279395,4.506,3673.2,3672.7,2.72278272]
[1753160279558,0.03403119,3673.1,3672.6,0.7865]
[1753160279869,4.506,3673.2,3672.6,0.7865]